Cogmind - Beta 16 @@@ ROGUE MODE // 2025.12.31 @ 23:54:55 Player: cxt100s Result: Destroyed by P-80 Master with Gamma Rifle Performance ------------- Evolutions (8) 4000 Regions Visited (25) 5000 Robots Destroyed (195) 975 Value Destroyed (13035) 13035 Prototype IDs (36) 720 Alien Tech Used (0) 0 Bonus (13967) 13967 TOTAL SCORE: 37697 Bonus ------- High Alert Combat Kills 458 Follower Combat Kills 4531 Entered Garrisons 1400 Used RIF Installer 4000 Network Hubs Disabled 400 Aligned with FarCom 300 Built Enhanced Grunts 300 A7 Reached Mainframe 300 Met R17 at Cetus 500 Met R17 at Research 2000 Friendly Fire -222 Cogmind --------- Core Integrity 0/1450 Matter 280/300 Energy 99/100 System Corruption 1% Temperature Cool (0) Movement Core (50) Location -2/Research Parts ------- > --- POWER (3) -------- (None) > --- PROPULSION (6) --- (None) > --- UTILITY (11) ----- Terrain Scan Processor > --- WEAPON (3) ------- (None) > --- INVENTORY (5) ---- Light Antimatter Reactor Energy Well (350) Graphene Brace Quantum Rifle Peak State ------------ > --- POWER ------------ Cooled Fission Core Cooled Fission Core Quantum Reactor > --- PROPULSION ------- Heavy Treads Centrium Heavy Treads > --- UTILITY ---------- Advanced Cooling System Huge Storage Unit Centrium Medium Armor Plating Centrium Medium Armor Plating Hardlight Generator Relay Coupler [NC] Relay Coupler [Grunt] Relay Coupler [Sentry] Relay Coupler [Hunter] > --- WEAPON ----------- Quantum Rifle Quantum Rifle Quantum Rifle > --- INVENTORY -------- Heavy Treads Centrium Heavy Treads Centrium Heavy Treads Advanced Cooling System Huge Storage Unit Superbattery Centrium Medium Armor Plating Graphene Brace Relay Coupler [NC] Relay Coupler [NC] Relay Coupler [Grunt] Relay Coupler [Hunter] HERF Cannon Heavy Ion Cannon Matter Neutralizer Matter Neutralizer Railgun Micro-nuke Launcher Improved Remote Datajack Improved Remote Datajack Plasma Cutter Maul [Rating: 132] Favorites ----------- Power Cooled Fission Core Engine Improved Ion Engine Power Core Cooled Fission Core Reactor Light Antimatter Reactor Propulsion Armored Treads Treads Armored Treads Leg Aluminum Leg Wheel Armored Wheel Flight Unit Cooled Nuclear Pulse Thruster Utility Huge Storage Unit Device Improved Cooling System Storage Huge Storage Unit Processor Improved Targeting Computer Hackware Relay Coupler [Grunt] Protection Powered Armor Weapon Heavy Ion Cannon Energy Gun Quantum Rifle Energy Cannon Heavy Ion Cannon Ballistic Gun Heavy Assault Rifle Launcher Rocket Launcher Special Weapon Improved Remote Datajack Impact Weapon Maul Piercing Weapon Enhanced Force Lance Special Melee Weapon Improved Datajack Build | -11 -10 -10 -10 -9 -8 -8 -8 -8 -7 -7 -7 -7 -6 -6 -5 -5 -4 -4 -4 -4 -4 -4 -4 -3 -2 ------- Run | Yrd Mat Min Exi Min Mat Gar Mat Gar Fac Gar Fac Gar Fac Gar Fac Gar Fac Gar Fac Ext Cet Arc Hub Res Res Slots Evolved 16 | . . . . . 4 . . . 2 . . . 2 . 2 . 2 . . . . . . 2 2 Power 2 | . . . . . . . . . . . . . . . 1 . 1 . . . . . . . . Propulsion 4 | . . . . . 1 . . . . . . . 1 . . . . . . . . . . 2 . Utility 9 | . . . . . 3 . . . 2 . . . . . 1 . 1 . . . . . . . 2 Weapon 1 | . . . . . . . . . . . . . 1 . . . . . . . . . . . . Parts Attached 235 | 4 9 . . 2 19 16 23 8 18 5 1 12 1 3 3 11 16 9 3 21 5 2 7 35 2 Power 24 | . 2 . . 1 2 1 1 . . 1 . . . 2 . . 5 1 . 2 1 . . 5 . Engine 9 | . 1 . . 1 2 1 1 . . . . . . 2 . . 1 . . . . . . . . Core 7 | . 1 . . . . . . . . 1 . . . . . . 4 . . 1 . . . . . Reactor 8 | . . . . . . . . . . . . . . . . . . 1 . 1 1 . . 5 . Propulsion 51 | 2 2 . . . 4 7 9 2 3 . . . 1 . . 1 . 3 1 5 1 . 1 7 2 Treads 44 | 2 1 . . . 4 7 9 2 3 . . . 1 . . 1 . 3 1 5 1 . 1 3 . Leg . | . . . . . . . . . . . . . . . . . . . . . . . . . . Wheel 1 | . 1 . . . . . . . . . . . . . . . . . . . . . . . . Hover . | . . . . . . . . . . . . . . . . . . . . . . . . . . Flight 6 | . . . . . . . . . . . . . . . . . . . . . . . . 4 2 Utility 110 | 1 3 . . . 8 7 10 5 7 3 1 12 . 1 1 6 8 2 1 10 2 2 4 16 . Device 38 | 1 1 . . . 4 3 1 1 4 . . . . . 1 5 5 . 1 5 . 2 . 4 . Storage 5 | . 2 . . . . . . . . . . . . . . . 1 . . . . . . 2 . Processor 9 | . . . . . 1 . . . . . . . . . . . 1 . . . . . . 7 . Hackware 34 | . . . . . . 4 1 4 3 3 1 11 . 1 . 1 1 1 . . . . 3 . . Protection 24 | . . . . . 3 . 8 . . . . 1 . . . . . 1 . 5 2 . 1 3 . Artifact . | . . . . . . . . . . . . . . . . . . . . . . . . . . Weapon 50 | 1 2 . . 1 5 1 3 1 8 1 . . . . 2 4 3 3 1 4 1 . 2 7 . Energy Gun 13 | 1 . . . 1 4 . 1 . . . . . . . . . . 1 . 2 . . . 3 . Energy Cannon 15 | . . . . . 1 . . . 5 1 . . . . 1 . 1 1 . 1 . . 1 3 . Ballistic Gun 6 | . 1 . . . . . . . 2 . . . . . . 2 . . . . 1 . . . . Ballistic Cannon . | . . . . . . . . . . . . . . . . . . . . . . . . . . Launcher 6 | . . . . . . . 2 . . . . . . . . 1 1 1 . . . . 1 . . Special Weapon 7 | . . . . . . . . 1 1 . . . . . 1 1 1 . 1 1 . . . . . Impact Weapon 1 | . 1 . . . . . . . . . . . . . . . . . . . . . . . . Slashing Weapon . | . . . . . . . . . . . . . . . . . . . . . . . . . . Piercing Weapon 1 | . . . . . . . . . . . . . . . . . . . . . . . . 1 . Special Melee Weapon 1 | . . . . . . 1 . . . . . . . . . . . . . . . . . . . Unidentified Prototypes 13 | . . . . . 4 . 1 . . . . . . . . . 1 . . . 3 . . 3 1 Corrupted Parts 1 | . . . . . . . . . . . . . . . . . . . . . . . . 1 . System Corruption 1 | . . . . . . . . . . . . . . . . . . . . . . . . 1 . Parts Lost 50 | . 2 . . . 5 1 1 . . . . 1 . . . 1 . 4 . 3 . . 16 10 6 Power 6 | . 1 . . . 1 . . . . . . . . . . . . . . 1 . . 3 . . Propulsion 13 | . 1 . . . 2 . . . . . . . . . . . . 1 . 1 . . 4 2 2 Utility 23 | . . . . . 2 1 1 . . . . 1 . . . 1 . 2 . . . . 5 7 3 Weapon 8 | . . . . . . . . . . . . . . . . . . 1 . 1 . . 4 1 1 Highest Loss Streak 16 | . 1 . . . 2 1 1 . . . . 1 . . . 1 . 4 . 2 . . 16 8 2 To Critical Strikes . | . . . . . . . . . . . . . . . . . . . . . . . . . . Average Backups 22 | 4 16 22 22 22 24 24 24 24 24 24 24 24 23 24 24 24 24 23 24 24 22 22 20 15 4 Power 1 | 1 1 1 1 1 1 1 1 1 1 1 1 1 1 1 . . . 1 1 . . . . . 1 Propulsion 3 | 1 3 4 4 4 5 4 4 4 4 4 4 4 3 3 4 3 4 4 4 3 2 3 2 . . Utility 8 | . 3 5 5 4 4 9 10 10 10 9 9 10 11 11 10 10 8 8 10 9 9 9 9 3 2 Weapon 8 | 1 9 12 12 12 12 8 7 6 6 7 7 7 6 6 7 7 8 7 7 7 7 7 6 10 1 Tool/Special . | . . . . . . . . . . . . . . . . . . . . . . . . . . Unused Backups 93 | 8 8 . 1 1 12 5 4 3 6 . . 3 . . . 1 2 2 . 3 6 . 6 21 1 Power 7 | 1 2 . . . . 1 1 . . . . . . . . 1 . . . . . . . . 1 Propulsion 14 | 5 1 . . . 1 . 1 . 1 . . . . . . . . . . 1 4 . . . . Utility 23 | 1 1 . 1 1 2 2 1 2 1 . . 2 . . . . . . . 1 1 . 4 3 . Weapon 46 | 1 4 . . . 9 1 1 1 4 . . 1 . . . . 1 2 . 1 1 . 1 18 . Tool/Special 3 | . . . . . . 1 . . . . . . . . . . 1 . . . . . 1 . . Average Slot Usage (%) 95 | . 99 100 100 100 96 98 99 97 99 98 100 99 99 100 99 99 99 98 100 94 88 89 80 63 17 Engine 6 | . 13 14 14 14 9 8 9 9 7 4 . . . 2 10 11 5 3 . . . . . . . Core 3 | . . . . . . . . . . 2 7 7 6 3 . . 9 9 10 10 10 10 8 . . Reactor 1 | . . . . . . . . . . . . . . . . . . 1 5 4 5 5 4 10 . Treads 21 | . 21 14 14 14 26 27 27 27 23 23 23 23 26 26 23 23 21 20 21 16 9 10 9 9 1 Wheel 1 | . 6 14 14 14 . . . . . . . . . . . . . . . . . . . . . Device 12 | . 13 14 14 14 17 24 10 7 14 15 15 7 6 6 8 10 11 15 15 13 10 17 9 4 . Storage 7 | . 14 14 14 14 9 9 9 9 7 7 7 7 6 6 5 5 5 5 5 5 5 5 4 3 . Hackware 15 | . . . . . . 5 14 16 22 23 23 27 26 26 23 23 21 21 21 21 21 21 21 18 . Protection 6 | . . . . . 9 3 11 10 7 6 7 8 6 6 6 5 7 4 5 5 8 3 7 3 . Energy Gun 5 | . 14 14 14 14 10 8 8 5 1 . . . . . . . . . . 7 14 15 5 1 . Energy Cannon 7 | . . . . . 7 8 9 8 9 13 15 10 13 15 14 12 12 9 10 5 . . 5 3 . Ballistic Gun 2 | . 13 13 14 14 . . . . . . . . . . . . . . . . . . . . . Special Weapon 1 | . . . . . . . . 2 2 . . 3 5 3 2 3 2 4 4 2 . . 1 . . Peak Build Rating 132 | 7 14 12 13 15 30 32 34 34 48 52 52 53 60 60 70 72 92 95 93 119 132 127 127 117 44 Average Rating 54 | 6 10 12 12 14 26 30 31 33 45 48 51 52 59 58 67 69 86 88 91 99 125 122 110 86 31 On Entrance 52 | 6 7 12 12 13 15 27 32 34 34 48 52 52 53 60 56 70 71 89 91 93 119 127 124 23 35 Avg Prop Armor Cover (%) 20 | . 12 12 12 12 . . . . . . . . . . . . . . . . . . 39 37 38 Naked Turns . | . . . . . . . . . . . . . . . . . . . . . . . . . . Heaviest Build 179 | 13 91 91 91 91 103 104 116 118 117 123 123 132 125 130 142 143 174 170 167 170 170 167 179 167 8 Greatest Support 150 | 40 40 12 12 12 60 60 60 60 60 60 60 60 80 80 80 90 80 89 92 140 150 140 140 136 23 Greatest Overweight (x) 7 | . 7 7 7 7 1 1 1 1 1 2 2 2 1 1 1 1 2 2 1 1 1 1 1 2 2 Average Overweight (x) 1 | . 2 7 7 7 1 1 1 1 1 1 2 1 1 1 1 1 1 1 1 1 . 1 . . . Largest Inventory Capacity 25 | 8 25 25 25 25 25 25 25 25 25 25 25 25 25 25 25 25 25 25 25 25 25 25 25 25 5 Average Capacity 24 | 8 19 25 25 25 25 25 25 25 25 25 25 25 25 25 25 25 25 25 25 25 25 25 23 21 5 Most Carried 25 | 6 22 22 23 24 25 25 25 25 25 25 25 25 24 25 25 25 25 25 25 25 25 25 25 25 5 Average Carried 22 | 4 16 22 22 22 24 24 24 24 24 24 24 24 23 24 24 24 24 23 24 24 24 25 22 15 4 Final Capacity 25 | 8 25 25 25 25 25 25 25 25 25 25 25 25 25 25 25 25 25 25 25 25 25 25 5 5 5 Final Carried 25 | 5 22 22 23 24 24 25 25 25 25 25 25 25 24 25 25 25 25 24 25 24 25 25 5 5 4 Class Distribution -------------------- 32% | Botlord-Tank 28% | Bothacker-Mutant 23% | Mutant 8% | Scavenger-Mutant 3% | Botlord-Skirmisher Dominant Class ---------------- Mutant | -10/Materials Mutant | -10/Mines Mutant | -10/Exiles Mutant | -9/Mines Mutant | -8/Materials Scavenger-Mutant | -8/Garrison Bothacker-Mutant | -8/Materials Bothacker-Mutant | -8/Garrison Bothacker-Mutant | -7/Factory Bothacker-Mutant | -7/Garrison Bothacker-Mutant | -7/Factory Bothacker-Mutant | -7/Garrison Botlord-Skirmisher | -6/Factory Botlord-Skirmisher | -6/Garrison Botlord-Tank | -5/Factory Botlord-Tank | -5/Garrison Botlord-Tank | -4/Factory Botlord-Tank | -4/Garrison Botlord-Tank | -4/Factory Botlord-Tank | -4/Extension Botlord-Tank | -4/Cetus Botlord-Tank | -4/Archives Botlord-Tank | -4/Hub_04(d) Scavenger-Mutant | -3/Research Mutant | -2/Research Resources | -11 -10 -10 -10 -9 -8 -8 -8 -8 -7 -7 -7 -7 -6 -6 -5 -5 -4 -4 -4 -4 -4 -4 -4 -3 -2 ----------- Run | Yrd Mat Min Exi Min Mat Gar Mat Gar Fac Gar Fac Gar Fac Gar Fac Gar Fac Gar Fac Ext Cet Arc Hub Res Res Matter Collected 6970 | 264 497 23 40 106 220 259 393 341 323 205 . 574 . 155 70 441 643 457 155 772 231 . 160 641 . Remotely . | . . . . . . . . . . . . . . . . . . . . . . . . . . Salvage Created 9644 | 233 724 13 . 29 1258 749 976 351 174 186 . 218 . 87 97 174 1323 551 96 1099 276 145 130 755 . Parts 425 | 27 32 . . 1 56 31 40 25 9 12 . 12 . 4 6 12 51 12 2 42 12 7 3 29 . Haulers Intercepted 8 | . 2 . . . 2 . 4 . . . . . . . . . . . . . . . . . . Recyclers Shooed 5 | . . . . . 2 . 1 . . . . . . . . . 2 . . . . . . . . Parts Field Recycled . | . . . . . . . . . . . . . . . . . . . . . . . . . . Retrieved Matter . | . . . . . . . . . . . . . . . . . . . . . . . . . . Parts Self-Destructed . | . . . . . . . . . . . . . . . . . . . . . . . . . . Prevented . | . . . . . . . . . . . . . . . . . . . . . . . . . . Parts Restored . | . . . . . . . . . . . . . . . . . . . . . . . . . . Kills | -11 -10 -10 -10 -9 -8 -8 -8 -8 -7 -7 -7 -7 -6 -6 -5 -5 -4 -4 -4 -4 -4 -4 -4 -3 -2 ------- Run | Yrd Mat Min Exi Min Mat Gar Mat Gar Fac Gar Fac Gar Fac Gar Fac Gar Fac Gar Fac Ext Cet Arc Hub Res Res Combat Hostiles Destroyed 146 | . 15 1 . . 17 15 12 9 2 4 . 8 . 2 2 6 14 6 2 12 4 1 5 9 . Guns 46 | . 15 1 . . 4 8 7 1 . . . . . . . . . . . 4 4 1 1 . . Cannons 76 | . . . . . 13 6 4 6 2 4 . 6 . 1 2 2 12 3 2 7 . . 3 3 . AOE 13 | . . . . . . . 1 2 . . . 2 . . . 4 2 1 . . . . 1 . . Classes Destroyed 21 | 2 4 1 . 1 4 2 . . . . . . . 1 . 1 1 1 . . . 1 1 1 . Worker 6 | . . . . 1 . . . . 1 . . . . . . . 2 . . . . . 1 1 . Builder 3 | . . . . . 1 . . . 1 . . . . . . . 1 . . . . . . . . Tunneler 9 | 9 . . . . . . . . . . . . . . . . . . . . . . . . . Hauler 8 | . 2 . . . 2 . 4 . . . . . . . . . . . . . . . . . . Recycler 10 | 1 . . . . 2 . 2 . . . . . . . . . 4 . . 1 . . . . . Mechanic 1 | . . . . . . . . . . . . . . . . . 1 . . . . . . . . Operator 2 | . . . . . . . . . . . . . . . . . . . . . . 2 . . . Watcher 8 | . 3 . . . 3 . 1 . . . . . . . . . . . . . . . 1 . . Swarmer 16 | . 4 . . . . . 1 2 . . . 3 . 1 . 2 3 . . . . . . . . Cutter 3 | . . . . . . . . . . . . . . . . 3 . . . . . . . . . Grunt 53 | . 11 . . . 9 8 6 3 1 . . 3 . . . 1 1 3 . 4 . . . 3 . Brawler 2 | . . . . . 1 . . . . . . . . . . . . 1 . . . . . . . Duelist 4 | . . . . . . 1 . 1 1 . . . . . . . . 1 . . . . . . . Protector 1 | . . . . . . . . . . . . . . . . . . . . . . . 1 . . Sentry 21 | . . . . . 6 3 5 1 . . . . . . . . 1 . . 4 . 1 . . . Hunter 8 | . . . . . 1 . . . . 1 . 1 . . . . 2 1 . 2 . . . . . Programmer 22 | . . . . . . 3 . 3 1 3 . 1 . . 2 . 7 . 2 . . . . . . Behemoth 3 | . . . . . . . . . . . . . . 1 . . . . . 2 . . . . . Cetus Guard 4 | . . . . . . . . . . . . . . . . . . . . . 4 . . . . Lightning 4 | . . . . . . . . . . . . . . . . . . . . . . . 4 . . Striker 5 | . . . . . . . . . . . . . . . . . . 1 . . . . . 4 . Executioner 2 | . . . . . . . . . . . . . . . . . . . . . . . . 2 . Assembled 1 | . . 1 . . . . . . . . . . . . . . . . . . . . . . . Best Kill Streak 7 | 4 3 1 . 1 2 2 3 3 2 3 . 3 . 1 1 3 5 2 2 2 2 2 7 2 . Combat Bots Only 5 | . 3 1 . . 2 2 2 3 1 3 . 3 . 1 1 3 3 2 2 2 2 1 5 2 . Max Kills in Single Turn 3 | 1 2 1 . 1 2 1 1 1 1 1 . 2 . 1 1 2 3 1 1 1 2 1 2 1 . Gunslinging 1 | . 1 . . . . . . . . . . . . . . . . . . . 1 . . . . Exploded 2 | . . . . . . . 1 1 . . . 2 . . . 2 1 1 . . . . 1 . . Melee . | . . . . . . . . . . . . . . . . . . . . . . . . . . Uniques/NPCs Destroyed . | . . . . . . . . . . . . . . . . . . . . . . . . . . Combat | -11 -10 -10 -10 -9 -8 -8 -8 -8 -7 -7 -7 -7 -6 -6 -5 -5 -4 -4 -4 -4 -4 -4 -4 -3 -2 -------- Run | Yrd Mat Min Exi Min Mat Gar Mat Gar Fac Gar Fac Gar Fac Gar Fac Gar Fac Gar Fac Ext Cet Arc Hub Res Res Hostile Shots Fired 1286 | . 64 1 . . 95 59 67 33 72 44 . 28 . 28 5 29 79 55 16 66 9 4 176 137 219 Missed 416 | . 17 1 . . 24 21 21 7 21 12 . 13 . 14 1 7 25 21 4 16 2 1 31 48 109 Hits 870 | . 47 . . . 71 38 46 26 51 32 . 15 . 14 4 22 54 34 12 50 7 3 145 89 110 Melee 27 | . . . . . . 1 . 4 . . . 1 . . . 4 . 6 . . . . . 11 . Projectile 843 | . 47 . . . 71 37 46 22 51 32 . 14 . 14 4 18 54 28 12 50 7 3 145 78 110 AOE 11 | . . . . . . . . . . . . 1 . . 3 2 . . . . . . 5 . . Critical Strikes 56 | . . . . . 4 1 4 . 2 1 . 1 . . . 2 2 5 1 3 1 . 18 7 4 Actively Blocked 5 | . . . . . . . . . . . . . . . . . 1 . . . . . 4 . . Part Disruptions 3 | . . . . . . . . . . 1 . . . . . . 2 . . . . . . . . Damage Taken 18690 | . 513 . . . 1147 580 775 479 647 295 . 390 . 291 239 594 1067 879 280 852 171 74 4874 2289 2254 Core 3390 | . 88 . . . 132 81 58 78 31 12 . 72 . 48 . 40 92 103 45 42 12 . 690 295 1471 Absorbed by Shields 1424 | . . . . . . . . 40 . 64 . 32 . 33 . 96 168 264 72 447 103 12 30 . 63 Reduced by Siege Mode 310 | . . . . . . . . . . . . . . . . . . . . . . . 306 4 . Redirected to Shielding 10 | . . . . . 10 . . . . . . . . . . . . . . . . . . . . Regen/Repaired (Parts) 1173 | . . . . . 121 . . . 98 . . . . . 232 299 423 . . . . . . . . Core Remaining (%) 70 | 100 . . . 64 . . . 36 . . . 83 . 94 . 96 . . . . . . 14 77 . Volleys Fired 783 | 16 68 1 . . 70 67 61 37 29 22 . 38 . 15 9 42 79 59 16 58 8 8 29 51 . Largest 3 | 2 2 2 . . 2 2 2 2 2 2 . 2 . 3 3 2 3 2 3 3 3 3 3 1 . Hottest 304 | 70 73 73 . . 136 136 136 136 160 130 . 130 . 195 195 130 235 210 304 282 282 282 282 98 . Shots Fired 1334 | 32 138 2 . 1 140 130 120 55 44 34 . 55 . 21 19 44 141 70 29 111 24 24 49 51 . Gun 500 | 32 138 2 . 1 79 66 60 21 . . . . . . . . . . 4 37 24 24 12 . . Cannon 704 | . . . . . 61 64 59 21 31 30 . 43 . 15 15 27 123 55 19 61 . . 29 51 . Launcher 19 | . . . . . . . 1 4 . . . 2 . . . 2 2 . 1 . . . 7 . . Special 111 | . . . . . . . . 9 13 4 . 10 . 6 4 15 16 15 5 13 . . 1 . . Kinetic 86 | 16 69 1 . . . . . . . . . . . . . . . . . . . . . . . Thermal 997 | 16 69 1 . 1 140 130 119 42 31 30 . 43 . 15 15 9 108 31 23 83 24 24 41 2 . Explosive 19 | . . . . . . . 1 4 . . . 2 . . . 2 2 . 1 . . . 7 . . Electromagnetic 121 | . . . . . . . . . . . . . . . . 18 15 24 . 15 . . . 49 . Robot Hit Streak 23 | 10 8 3 . 4 15 23 13 10 7 10 . 8 . 9 5 9 15 12 4 13 6 4 9 6 . Robot Miss Streak 5 | 2 4 . . . 3 3 3 4 2 1 . 2 . 4 2 3 4 4 2 3 5 3 3 3 . Penetration Max . | . . . . . . . . . . . . . . . . . . . . . . . . . . Secondary Targets 4 | . 2 . . . . . . . . . . . . . . . . . . . 2 . . . . Max Gunslinging Chain 1 | . 1 . . . . . . . . . . . . . . . . . . . 1 . . . . Shots Hit Robots 793 | 21 74 2 . 1 98 63 79 29 31 18 . 29 . 9 10 28 83 42 13 73 14 14 32 30 . Core Hits 318 | 11 31 2 . 1 40 24 31 13 6 7 . 12 . 2 1 7 35 12 3 22 9 7 32 10 . Critical Kills 2 | . . . . . . . . . . . . . . . . . . 1 . 1 . . . . . Critical Parts Destroyed 1 | . . . . . . . . . 1 . . . . . . . . . . . . . . . . Critical Strikes 19 | 1 4 . . . 4 1 5 . 1 . . . . . . 1 . 1 . 1 . . . . . Burn 15 | 1 4 . . . 4 1 5 . . . . . . . . . . . . . . . . . . Meltdown 2 | . . . . . . . . . . . . . . . . . . 1 . 1 . . . . . Corrupt 1 | . . . . . . . . . . . . . . . . 1 . . . . . . . . . Smash 1 | . . . . . . . . . 1 . . . . . . . . . . . . . . . . Melee Attacks 29 | . 2 1 . . 1 5 4 2 3 . . . . 2 . . 7 . . . . . . . 2 Impact 18 | . 2 1 . . 1 . . 2 3 . . . . 2 . . 7 . . . . . . . . Slashing . | . . . . . . . . . . . . . . . . . . . . . . . . . . Piercing 2 | . . . . . . . . . . . . . . . . . . . . . . . . . 2 Sneak Attacks 3 | . . . . . . 1 1 . 1 . . . . . . . . . . . . . . . . Combat Hostiles 1 | . . . . . . 1 . . . . . . . . . . . . . . . . . . . Follow-up Attacks . | . . . . . . . . . . . . . . . . . . . . . . . . . . Damage Inflicted 21841 | 257 1041 26 . 12 2287 1414 1864 865 716 474 . 723 . 172 270 665 2851 1280 414 1915 449 540 2489 1117 . Guns 5716 | 257 1025 26 . 12 977 585 650 125 . . . . . . . . . . 71 686 449 540 313 . . Cannons 12917 | . . . . . 1250 829 1100 374 611 474 . 583 . 172 270 441 2211 1204 336 1229 . . 716 1117 . Explosions 2960 | . . . . . 41 . 114 366 . . . 140 . . . 224 589 55 . . . . 1431 . . Melee 104 | . . . . . . . . . 104 . . . . . . . . . . . . . . . . Ramming 144 | . 16 . . . 19 . . . 1 . . . . . . . 51 21 7 . . . 29 . . Kinetic 715 | 144 558 13 . . . . . . . . . . . . . . . . . . . . . . . Thermal 15509 | 113 467 13 . 12 2268 1414 1750 499 611 474 . 583 . 172 270 155 2122 668 407 1493 449 540 1029 . . Explosive 2561 | . . . . . . . 114 366 . . . 140 . . . 151 359 . . . . . 1431 . . Electromagnetic 2808 | . . . . . . . . . . . . . . . . 359 319 591 . 422 . . . 1117 . Impact 104 | . . . . . . . . . 104 . . . . . . . . . . . . . . . . Slashing . | . . . . . . . . . . . . . . . . . . . . . . . . . . Piercing . | . . . . . . . . . . . . . . . . . . . . . . . . . . Highest Corruption 35 | . 3 3 3 3 . 2 2 5 1 1 1 6 . . 1 1 10 10 12 14 7 7 35 17 1 Average Corruption 5 | . 2 3 3 3 . 1 2 4 1 1 1 4 . . 1 1 5 10 10 13 7 4 23 5 1 Corruption Purged 14 | . . . . . . . . . . . . . . . . . . . . 7 . 7 . . . Corruption Blocked . | . . . . . . . . . . . . . . . . . . . . . . . . . . Effects 626 | . 42 8 13 13 . 18 36 35 5 6 1 64 . . 1 17 51 74 25 159 18 3 5 32 . Message Errors 146 | . 8 1 4 3 . 4 7 9 2 . 1 16 . . 1 7 18 18 5 32 3 1 . 6 . Matter Fused 143 | . 7 2 3 3 . 8 6 11 1 . . 14 . . . 3 12 17 6 33 8 1 1 7 . Heat Flow Errors 95 | . 11 2 1 2 . . 3 4 . 1 . 9 . . . 2 3 10 2 36 2 . . 7 . Energy Discharges 79 | . 3 2 4 1 . 1 6 6 1 1 . 7 . . . 1 4 10 4 16 2 1 1 8 . Parts Rejected 8 | . . . . . . . 1 . . 1 . . . . . . 2 1 1 . . . 1 1 . Parts Fused 3 | . 1 . . . . . . . . . . . . . . 1 1 . . . . . . . . Data Loss (minor) 73 | . 2 1 . 2 . 2 8 4 . 2 . 9 . . . 3 4 9 4 17 2 . 2 2 . Data Loss (major) 33 | . 5 . 1 1 . 1 4 . 1 1 . 5 . . . . . 3 2 7 1 . . 1 . Misfires 22 | . 4 . . 1 . . . . . . . . . . . . 6 1 1 9 . . . . . Alerts 10 | . . . . . . 1 . 1 . . . 1 . . . . 1 4 . 2 . . . . . Misdirections 1 | . . . . . . . . . . . . . . . . . . 1 . . . . . . . Weapon Failures 13 | . 1 . . . . 1 1 . . . . 3 . . . . . . . 7 . . . . . Overload Shots . | . . . . . . . . . . . . . . . . . . . . . . . . . . Overflow Damage 531 | . . . . . 22 7 6 25 138 40 . 28 . . 71 5 116 1 37 . . . 35 . . Projectiles 317 | . . . . . . 7 6 25 34 40 . 2 . . 71 5 89 1 37 . . . . . . Explosions 102 | . . . . . 22 . . . . . . 26 . . . . 19 . . . . . 35 . . Melee 112 | . . . . . . . . . 104 . . . . . . . 8 . . . . . . . . Knockbacks 1 | . . . . . . . . . . . . . . . . . . . 1 . . . . . . Impact 1 | . . . . . . . . . . . . . . . . . . . 1 . . . . . . Kinetic . | . . . . . . . . . . . . . . . . . . . . . . . . . . Secondary . | . . . . . . . . . . . . . . . . . . . . . . . . . . Self-Inflicted Damage 396 | . 1 . . . 75 . . . . . . 27 . . . 100 143 . . . . . 50 . . Shots 7 | . . . . . 1 . . . . . . 1 . . . 2 2 . . . . . 1 . . Rammed 18 | . 7 . . . 3 . . . 1 . . . . . . . 2 2 1 . . . 2 . . Targets Rammed 21 | . 7 . . . 4 . . . 2 . . . . . . . 3 2 1 . . . 2 . . Kicked . | . . . . . . . . . . . . . . . . . . . . . . . . . . Crushed 3 | . . . . . 1 . . . 1 . . . . . . . 1 . . . . . . . . Highest Temperature 369 | 72 256 196 96 215 48 12 303 288 170 184 . 242 . 42 143 208 366 172 336 248 369 361 315 317 . Average Temperature 78 | 28 61 81 56 97 17 6 81 87 65 38 . 78 . 22 65 77 91 70 154 89 132 161 118 79 . Received Heat Transfer 2568 | . 204 . . . 522 225 342 65 75 21 . 44 . 30 . 50 12 33 23 137 5 15 377 334 54 Effects 6 | . . . . . . . 1 . . . . . . . . . 3 . . . . . 1 1 . Energy Bleed 2 | . . . . . . . 1 . . . . . . . . . . . . . . . . 1 . Interference 3 | . . . . . . . . . . . . . . . . . 3 . . . . . . . . Damage (minor) 1 | . . . . . . . . . . . . . . . . . . . . . . . 1 . . Siege Activations 3 | . . . . . . . . . . . . . . . . . . . . . . . 2 1 . Total Turns 67 | . . . . . . . . . . . . . . . . . . . . . . . 53 14 . Longest Duration 32 | . . . . . . . . . . . . . . . . . . . . . . . 32 14 . Martial Activations . | . . . . . . . . . . . . . . . . . . . . . . . . . . Shielding Activations . | . . . . . . . . . . . . . . . . . . . . . . . . . . Robots Disrupted . | . . . . . . . . . . . . . . . . . . . . . . . . . . Combat Hostiles . | . . . . . . . . . . . . . . . . . . . . . . . . . . Robots Corrupted 7 | . . . . . . . . . . . . . . . . . . 1 . . . . . 6 . Combat Hostiles 7 | . . . . . . . . . . . . . . . . . . 1 . . . . . 6 . Parts Fried 29 | . . . . . . . . . 5 . . . . . . . 2 2 . 3 . . . 17 . Impact Corruptions 2 | . . . . . . . . . 1 . . . . . . . 1 . . . . . . . . Robots Melted 4 | . . . . . . 1 . . . . . . . 1 . . . 1 . 1 . . . . . Combat Hostiles 4 | . . . . . . 1 . . . . . . . 1 . . . 1 . 1 . . . . . Parts Melted 51 | 1 4 . . . 11 4 6 1 . . . 2 . 1 1 . 9 . 1 7 . 1 1 1 . Heat Transferred 23109 | 407 1665 37 . 37 4046 2257 3330 740 983 400 . 777 . 222 296 161 2407 645 370 1961 574 703 1091 . . Parts Sabotaged . | . . . . . . . . . . . . . . . . . . . . . . . . . . Parts Stolen . | . . . . . . . . . . . . . . . . . . . . . . . . . . Parts Stripped . | . . . . . . . . . . . . . . . . . . . . . . . . . . Power Chain Reactions 3 | . . . . . . . . . . . . . . . . 1 1 1 . . . . . . . Alert | -11 -10 -10 -10 -9 -8 -8 -8 -8 -7 -7 -7 -7 -6 -6 -5 -5 -4 -4 -4 -4 -4 -4 -4 -3 -2 ------- Run | Yrd Mat Min Exi Min Mat Gar Mat Gar Fac Gar Fac Gar Fac Gar Fac Gar Fac Gar Fac Ext Cet Arc Hub Res Res Maximum Alert Level 4 | . . . . . . 3 2 2 1 1 . 4 3 3 1 2 1 3 2 2 2 1 1 . 1 Low Security (%) 61 | 100 100 100 . 100 100 21 80 4 84 65 100 11 . . 46 41 31 . 35 98 . 28 97 100 97 Level 1 19 | . . . . . . 33 17 32 15 34 . 10 . . 53 22 68 56 17 . 73 71 2 . 2 Level 2 13 | . . . . . . 14 2 63 . . . 35 . 90 . 36 . 31 46 . 26 . . . . Level 3 4 | . . . . . . 30 . . . . . 24 100 9 . . . 12 . . . . . . . Level 4 1 | . . . . . . . . . . . . 18 . . . . . . . . . . . . . Level 5 . | . . . . . . . . . . . . . . . . . . . . . . . . . . High Security . | . . . . . . . . . . . . . . . . . . . . . . . . . . Max Security . | . . . . . . . . . . . . . . . . . . . . . . . . . . Peak Influence 1595 | 15 135 18 . 5 192 870 423 676 354 305 179 1595 837 731 383 612 343 976 512 526 449 289 273 135 201 Initial 837 | . . 18 . . . 93 423 139 354 119 159 118 837 578 383 35 321 238 512 89 293 130 59 54 60 Average 227 | 2 58 1 . . 69 450 137 463 110 198 165 692 820 627 208 307 222 426 326 58 374 220 120 19 98 Influence Increases 12655 | 50 513 1 . 5 795 927 848 597 484 246 30 1627 30 293 64 707 980 978 412 1043 347 231 786 325 336 Destroy 0b10 Robot/C 5180 | . 300 . . . 340 360 460 220 240 100 . 500 . 160 40 380 380 380 180 500 160 80 220 180 . Destroy 0b10 Robot/NC 310 | 50 25 . . 5 45 . 70 . 15 . . . . . 5 . 35 5 5 10 . 10 25 5 . Destroy Leader 838 | . 80 . . . 110 10 164 30 82 . . 30 . 30 10 20 90 20 30 50 . . 42 40 . Allied During Kill 1588 | . . . . . . 23 55 20 73 6 . 137 . 32 4 68 94 209 110 327 160 90 180 . . Successful Hack 211 | . 14 . . . 70 14 14 . 42 . . . . . 5 . 31 . . . . . . 21 . Select Force Hacks 260 | . . . . . 60 . 30 . 30 . 30 . 30 . . . 30 . . . . . 50 . . Disable Machine 630 | . . . . . 60 . 30 30 . 30 . 30 . 15 . 15 120 15 15 120 15 45 75 15 . Anti-Garrison Action 2150 | . . . . . . 350 . 250 . 100 . 900 . 50 . 200 . 300 . . . . . . . Destroy Structure 738 | . 4 1 . . 35 95 25 32 2 10 . 15 . 6 . 24 200 19 72 36 12 6 134 4 6 Partial Spotted 15 | . . . . . . . . . . . . . . . . . . . . . . . . . 15 Lose Combat Pursuer 735 | . 90 . . . 75 75 . 15 . . . 15 . . . . . 30 . . . . 60 60 315 Influence Decreases 12464 | 50 464 50 . 5 651 201 1503 136 990 111 166 201 798 389 744 146 1251 343 1205 701 546 386 854 320 253 Entered New Map 4135 | . . 31 . . . 51 447 76 322 51 146 51 758 249 348 16 291 103 464 94 232 196 112 49 48 Time Decay 5140 | 50 444 19 . 5 451 . 626 . 608 . 20 . 40 . 356 . 690 . 326 483 254 150 302 171 145 Lost Part 500 | . 20 . . . 50 10 10 . . . . 10 . . . 10 . 40 . 30 . . 160 100 60 Lost Ally 1814 | . . . . . . 140 120 60 60 60 . 140 . 140 40 120 120 200 140 94 60 40 280 . . Purge Threat 875 | . . . . . 150 . 300 . . . . . . . . . 150 . 275 . . . . . . Squads Dispatched 46 | . 4 . . . 4 . 5 . 8 . 1 . 1 . 1 . 6 . 4 1 . . 5 3 3 Investigation 17 | . 1 . . . 4 . 4 . 1 . 1 . 1 . . . 2 . . . . . 1 2 . Extermination 15 | . . . . . . . . . 4 . . . . . 1 . 4 . 2 . . . 2 . 2 Reinforcement 10 | . 3 . . . . . 1 . 2 . . . . . . . . . 1 1 . . . 1 1 Assault 1 | . . . . . . . . . . . . . . . . . . . 1 . . . . . . Garrison 3 | . . . . . . . . . 1 . . . . . . . . . . . . . 2 . . Intercept . | . . . . . . . . . . . . . . . . . . . . . . . . . . Searches Triggered . | . . . . . . . . . . . . . . . . . . . . . . . . . . Construction Impeded . | . . . . . . . . . . . . . . . . . . . . . . . . . . Haulers Reinforced . | . . . . . . . . . . . . . . . . . . . . . . . . . . Active Scanning Responses . | . . . . . . . . . . . . . . . . . . . . . . . . . . Cargo Convoy Interrupts . | . . . . . . . . . . . . . . . . . . . . . . . . . . Stealth | -11 -10 -10 -10 -9 -8 -8 -8 -8 -7 -7 -7 -7 -6 -6 -5 -5 -4 -4 -4 -4 -4 -4 -4 -3 -2 --------- Run | Yrd Mat Min Exi Min Mat Gar Mat Gar Fac Gar Fac Gar Fac Gar Fac Gar Fac Gar Fac Ext Cet Arc Hub Res Res Distress Signals 24 | . 2 . . . 5 . 3 . 1 1 . . . . . . . . . 1 1 . . 5 5 Communications Jammed 560 | . . . . . . . . . . . . . . . 3 . 80 . 5 8 208 . 256 . . Distress Signals 560 | . . . . . . . . . . . . . . . 3 . 80 . 5 8 208 . 256 . . Times Spotted 454 | . 30 1 . . 33 23 30 18 17 10 . 32 . 11 4 21 46 22 9 31 9 11 36 23 37 Peak Tracking Total 18 | . 4 1 . . 6 4 5 4 5 5 . 4 . 7 2 4 4 4 2 4 5 2 18 8 12 Tactical Retreats 25 | . 3 . . . 3 4 . 1 . . . 1 . . . . . 1 . . . . 1 3 8 Traps | -11 -10 -10 -10 -9 -8 -8 -8 -8 -7 -7 -7 -7 -6 -6 -5 -5 -4 -4 -4 -4 -4 -4 -4 -3 -2 ------- Run | Yrd Mat Min Exi Min Mat Gar Mat Gar Fac Gar Fac Gar Fac Gar Fac Gar Fac Gar Fac Ext Cet Arc Hub Res Res Traps Triggered 60 | . 5 . . . 2 1 1 6 . 6 . 8 . 6 . 2 . 6 3 8 . . 3 2 1 Indirectly 1 | . . . . . . . . . . . . . . . . . . 1 . . . . . . . Trap Hack Attempts . | . . . . . . . . . . . . . . . . . . . . . . . . . . Triggered . | . . . . . . . . . . . . . . . . . . . . . . . . . . Disarmed . | . . . . . . . . . . . . . . . . . . . . . . . . . . Reprogrammed . | . . . . . . . . . . . . . . . . . . . . . . . . . . Reused . | . . . . . . . . . . . . . . . . . . . . . . . . . . Traps Extracted . | . . . . . . . . . . . . . . . . . . . . . . . . . . Installed . | . . . . . . . . . . . . . . . . . . . . . . . . . . Triggered . | . . . . . . . . . . . . . . . . . . . . . . . . . . Machines | -11 -10 -10 -10 -9 -8 -8 -8 -8 -7 -7 -7 -7 -6 -6 -5 -5 -4 -4 -4 -4 -4 -4 -4 -3 -2 ---------- Run | Yrd Mat Min Exi Min Mat Gar Mat Gar Fac Gar Fac Gar Fac Gar Fac Gar Fac Gar Fac Ext Cet Arc Hub Res Res Machines Disabled 63 | . . . . . 4 3 2 6 . 5 . 8 . 2 . 3 8 3 1 8 1 3 5 1 . Max in Single Turn 2 | . . . . . 2 1 1 1 . 1 . 1 . 1 . 1 2 1 1 1 1 1 1 1 . Garrison Relay 19 | . . . . . . 3 . 3 . 2 . 6 . 1 . 2 . 2 . . . . . . . Network Hub 2 | . . . . . . . . . . . . . . . . . . . . . . . 2 . . Machines Repaired . | . . . . . . . . . . . . . . . . . . . . . . . . . . Machines Dismantled 10 | . . . . . . . . . . . . . . . . . . . 1 7 1 . 1 . . Machines Sabotaged 1 | . . . . . . . . . . . . . . . . . . . . . . . 1 . . Overloaded Fab Kills . | . . . . . . . . . . . . . . . . . . . . . . . . . . Hacking | -11 -10 -10 -10 -9 -8 -8 -8 -8 -7 -7 -7 -7 -6 -6 -5 -5 -4 -4 -4 -4 -4 -4 -4 -3 -2 --------- Run | Yrd Mat Min Exi Min Mat Gar Mat Gar Fac Gar Fac Gar Fac Gar Fac Gar Fac Gar Fac Ext Cet Arc Hub Res Res Machines Accessed 67 | . 5 . 2 . 15 1 14 2 5 1 1 2 1 1 2 1 5 . 2 2 . . 1 3 1 Terminals 45 | . 5 . . . 9 1 9 2 3 1 . 2 . 1 1 1 2 . 2 1 . . 1 3 1 Fabricators . | . . . . . . . . . . . . . . . . . . . . . . . . . . Repair Stations 7 | . . . . . 2 . 2 . 1 . . . . . . . 1 . . 1 . . . . . Recycling Units 3 | . . . . . 2 . . . . . . . . . . . 1 . . . . . . . . Scanalyzers 3 | . . . . . 1 . 2 . . . . . . . . . . . . . . . . . . Garrison Access 7 | . . . . . 1 . 1 . 1 . 1 . 1 . 1 . 1 . . . . . . . . Total Hacks 159 | . 13 . 2 . 41 1 34 3 12 1 2 4 2 1 6 2 14 . 3 2 . . 3 11 2 Successful 82 | . 9 . 2 . 24 1 17 . 9 . 2 . 2 . 2 1 6 . . 1 . . 1 5 . Failed 75 | . 4 . . . 16 . 16 3 3 1 . 4 . 1 4 1 8 . 3 1 . . 2 6 2 Catastrophic 16 | . 1 . . . 4 . 1 1 . 1 . . . 1 . . 3 . . . . . 1 2 1 Database Lockouts 2 | . . . . . 1 . 1 . . . . . . . . . . . . . . . . . . Manual 114 | . 11 . 1 . 24 . 25 2 9 1 1 4 1 1 5 1 9 . 1 2 1 . 3 10 2 Terminals 118 | . 13 . . . 29 1 25 3 9 1 . 4 . 1 3 2 7 . 3 1 . . 3 11 2 Fabricators . | . . . . . . . . . . . . . . . . . . . . . . . . . . Repair Stations 12 | . . . . . 5 . 4 . 1 . . . . . . . 1 . . 1 . . . . . Recycling Units 6 | . . . . . 2 . . . . . . . . . . . 4 . . . . . . . . Scanalyzers 5 | . . . . . 2 . 3 . . . . . . . . . . . . . . . . . . Garrison Access 16 | . . . . . 3 . 2 . 2 . 2 . 2 . 3 . 2 . . . . . . . . Terminal Hacks 20 | . 2 . 2 . 7 1 3 . 2 . . . . . . . 1 . . . . . . 2 . Record 1 | . . . 1 . . . . . . . . . . . . . . . . . . . . . . Robot Schematic 1 | . . . . . 1 . . . . . . . . . . . . . . . . . . . . Emergency Access Points 1 | . . . . . . 1 . . . . . . . . . . . . . . . . . . . Terminal Index 2 | . . . . . . . . . 1 . . . . . . . . . . . . . . 1 . Recycling Unit Index 1 | . . . . . 1 . . . . . . . . . . . . . . . . . . . . Alert Level 2 | . 1 . . . 1 . . . . . . . . . . . . . . . . . . . . Unreport Threat 4 | . . . . . 1 . 2 . . . . . . . . . 1 . . . . . . . . Locate Traps 1 | . . . . . 1 . . . . . . . . . . . . . . . . . . . . Hauler Manifests 4 | . 1 . . . 1 . 1 . 1 . . . . . . . . . . . . . . . . Registered Components 2 | . . . . . 1 . . . . . . . . . . . . . . . . . . 1 . Proto ID Catalog 1 | . . . 1 . . . . . . . . . . . . . . . . . . . . . . Fabricator Hacks . | . . . . . . . . . . . . . . . . . . . . . . . . . . Repair Station Hacks 4 | . . . . . 3 . 1 . . . . . . . . . . . . . . . . . . Scan Component 3 | . . . . . 2 . 1 . . . . . . . . . . . . . . . . . . Repair 1 | . . . . . 1 . . . . . . . . . . . . . . . . . . . . Recycling Unit Hacks . | . . . . . . . . . . . . . . . . . . . . . . . . . . Scanalyzer 3 | . . . . . 1 . 2 . . . . . . . . . . . . . . . . . . Retrieve Study 3 | . . . . . 1 . 2 . . . . . . . . . . . . . . . . . . Garrison Access Hacks 7 | . . . . . 1 . 1 . 1 . 1 . 1 . 1 . 1 . . . . . . . . Unlock Access 7 | . . . . . 1 . 1 . 1 . 1 . 1 . 1 . 1 . . . . . . . . Unauthorized Hacks 48 | . 7 . . . 12 . 10 . 6 . 1 . 1 . 1 1 4 . . 1 . . 1 3 . Terminals 38 | . 7 . . . 10 . 9 . 4 . . . . . 1 1 2 . . . . . 1 3 . Assimilate 1 | . . . . . 1 . . . . . . . . . . . . . . . . . . . . Botnet 18 | . 2 . . . 4 . 4 . 2 . . . . . 1 1 2 . . . . . . 2 . Skim 18 | . 5 . . . 5 . 5 . 2 . . . . . . . . . . . . . . 1 . Sabotage 1 | . . . . . . . . . . . . . . . . . . . . . . . 1 . . Fabricators . | . . . . . . . . . . . . . . . . . . . . . . . . . . Repair Stations 3 | . . . . . . . . . 1 . . . . . . . 1 . . 1 . . . . . Mechanics 3 | . . . . . . . . . 1 . . . . . . . 1 . . 1 . . . . . Recycling Units 2 | . . . . . 2 . . . . . . . . . . . . . . . . . . . . Tunnel 2 | . . . . . 2 . . . . . . . . . . . . . . . . . . . . Scanalyzers . | . . . . . . . . . . . . . . . . . . . . . . . . . . Garrison Access 5 | . . . . . . . 1 . 1 . 1 . 1 . . . 1 . . . . . . . . Eject 5 | . . . . . . . 1 . 1 . 1 . 1 . . . 1 . . . . . . . . Data Cores Recovered 1 | . . . . . . . . . . . . . . . . . . . . . . . 1 . . Used . | . . . . . . . . . . . . . . . . . . . . . . . . . . Hacking Detections 44 | . 2 . . . 10 . 9 2 4 1 . 2 . 1 2 1 3 . 2 1 1 . 1 1 1 Full Trace Events 2 | . . . . . 1 . . . . . . . . . . . 1 . . . . . . . . Feedback Events . | . . . . . . . . . . . . . . . . . . . . . . . . . . Feedback Blocked . | . . . . . . . . . . . . . . . . . . . . . . . . . . Robot Schematics Acquired 1 | . . . . . 1 . . . . . . . . . . . . . . . . . . . . Robots Built . | . . . . . . . . . . . . . . . . . . . . . . . . . . Authchips . | . . . . . . . . . . . . . . . . . . . . . . . . . . Time . | . . . . . . . . . . . . . . . . . . . . . . . . . . Total Robot Build Rating . | . . . . . . . . . . . . . . . . . . . . . . . . . . Part Schematics Acquired . | . . . . . . . . . . . . . . . . . . . . . . . . . . Parts Built . | . . . . . . . . . . . . . . . . . . . . . . . . . . Authchips . | . . . . . . . . . . . . . . . . . . . . . . . . . . Time . | . . . . . . . . . . . . . . . . . . . . . . . . . . Total Part Build Rating . | . . . . . . . . . . . . . . . . . . . . . . . . . . Part Studies Acquired 3 | . . . . . 1 . 2 . . . . . . . . . . . . . . . . . . Parts Repaired 1 | . . . . . 1 . . . . . . . . . . . . . . . . . . . . Time 19 | . . . . . 19 . . . . . . . . . . . . . . . . . . . . Parts Recycled . | . . . . . . . . . . . . . . . . . . . . . . . . . . Recycled Matter . | . . . . . . . . . . . . . . . . . . . . . . . . . . Retrieved Matter . | . . . . . . . . . . . . . . . . . . . . . . . . . . Retrieved Components . | . . . . . . . . . . . . . . . . . . . . . . . . . . Parts Scanalyzed . | . . . . . . . . . . . . . . . . . . . . . . . . . . Part Schematics Acquired . | . . . . . . . . . . . . . . . . . . . . . . . . . . Parts Damaged . | . . . . . . . . . . . . . . . . . . . . . . . . . . Bothacking | -11 -10 -10 -10 -9 -8 -8 -8 -8 -7 -7 -7 -7 -6 -6 -5 -5 -4 -4 -4 -4 -4 -4 -4 -3 -2 ------------ Run | Yrd Mat Min Exi Min Mat Gar Mat Gar Fac Gar Fac Gar Fac Gar Fac Gar Fac Gar Fac Ext Cet Arc Hub Res Res Used RIF Installer 8 | . . . . . . 1 . 1 . 1 . 1 . 1 . 2 . 1 . . . . . . . Coupler Efficiency 1 | . . . . . . . . . . 1 . . . . . . . . . . . . . . . Hotswap 1 | . . . . . . . . . . . . 1 . . . . . . . . . . . . . Signal Jammer 1 | . . . . . . . . . . . . . . 1 . . . . . . . . . . . Zone Cloak 1 | . . . . . . . . . . . . . . . . 1 . . . . . . . . . Watcher Feeds 1 | . . . . . . . . . . . . . . . . 1 . . . . . . . . . Structural Interface 1 | . . . . . . . . 1 . . . . . . . . . . . . . . . . . Autooverride 1 | . . . . . . . . . . . . . . . . . . 1 . . . . . . . Robots Hacked 88 | . . . . . . 5 3 7 8 4 . 9 . 4 1 12 9 10 2 11 . . 2 1 . Non-combat 22 | . . . . . . . 1 . 5 . . . . . 1 . 7 . 1 6 . . 1 . . Combat 66 | . . . . . . 5 2 7 3 4 . 9 . 4 . 12 2 10 1 5 . . 1 1 . Autooverrided 5 | . . . . . . . . . . . . . . . . . . 1 . 2 . . 1 1 . Robot Hacks Applied 88 | . . . . . . 5 3 7 8 4 . 9 . 4 1 12 11 9 3 11 . . 1 . . parse_system 2 | . . . . . . . 1 . . . . . . . . . . . . 1 . . . . . find_chute 3 | . . . . . . . . . 1 . . . . . . . 2 . . . . . . . . deconstruct_machine 1 | . . . . . . . . . 1 . . . . . . . . . . . . . . . . ignore_repairs 2 | . . . . . . . . . . . . . . . . . 2 . . . . . . . . ignore_parts 8 | . . . . . . . . . 1 . . . . . . . . . . 7 . . . . . purge_threat 2 | . . . . . . . . . . . . . . . . . . . 2 . . . . . . locate_traps 1 | . . . . . . . . . . . . . . . . . 1 . . . . . . . . block_reporting 2 | . . . . . . . . . . . . . . . . . 1 . . . . . 1 . . amplify_resonance 3 | . . . . . . . . . . . . . . . . 2 1 . . . . . . . . overwrite_iff 4 | . . . . . . . . . . . . . . 1 . 2 . 1 . . . . . . . formatsys_low 5 | . . . . . . . . . 2 . . . . . 1 . 2 . . . . . . . . formatsys_high 55 | . . . . . . 5 2 7 3 4 . 9 . 3 . 8 2 8 1 3 . . . . . Relay Couplers Released 108 | . . . . . . 14 3 15 3 8 3 26 4 7 . 9 4 8 . . . . 4 . . Ejected 17 | . . . . . . . 3 . 3 . 3 . 4 . . . 4 . . . . . . . . Machine Destruction 84 | . . . . . . 14 . 15 . 8 . 26 . 4 . 9 . 8 . . . . . . . Programmers 7 | . . . . . . . . . . . . . . 3 . . . . . . . . 4 . . Attached 33 | . . . . . . 4 1 4 3 3 1 11 . 1 . 1 1 1 . . . . 2 . . Fabnet Peak Effective % . | . . . . . . . . . . . . . . . . . . . . . . . . . . Robots Rewired 27 | . . . . . . 6 . . . . . . . . . . . 10 . 11 . . . . . Allies Hacked 3 | . . . . . . . . . . . . 1 . . . . 1 . . . . . 1 . . Hacks Repelled . | . . . . . . . . . . . . . . . . . . . . . . . . . . Allies | -11 -10 -10 -10 -9 -8 -8 -8 -8 -7 -7 -7 -7 -6 -6 -5 -5 -4 -4 -4 -4 -4 -4 -4 -3 -2 -------- Run | Yrd Mat Min Exi Min Mat Gar Mat Gar Fac Gar Fac Gar Fac Gar Fac Gar Fac Gar Fac Ext Cet Arc Hub Res Res Total Allies 114 | . . . . . . 13 2 7 5 4 . 11 . 4 1 10 3 20 1 26 5 . 1 1 . Largest Group 19 | . . . . . . 6 6 4 6 3 2 5 5 6 2 5 6 7 6 18 19 18 15 1 . Highest-Rated Group 1115 | . . . . . . 110 100 63 151 64 64 222 114 143 64 179 202 374 374 894 1115 1115 895 56 . Highest-Rated Ally 159 | . . . . . . 31 21 16 32 32 32 80 32 32 32 85 49 99 99 159 159 143 96 56 . Total Orders 163 | . . . . . . 6 . 7 28 8 . 16 . 9 5 39 23 15 5 2 . . . . . STAY 74 | . . . . . . 3 . 4 10 4 . 9 . 5 1 20 6 8 3 1 . . . . . FOLLOW 65 | . . . . . . 3 . 3 8 4 . 7 . 4 2 14 10 7 2 1 . . . . . AID 24 | . . . . . . . . . 10 . . . . . 2 5 7 . . . . . . . . Ally Attacks 727 | . . . . . . 27 58 14 52 10 . 91 . 21 7 62 44 84 37 107 45 18 46 4 . Total Damage 18252 | . . . . . . 379 991 179 1356 194 . 2473 . 540 210 1210 879 1991 1066 3450 1210 382 1612 130 . Kills 133 | . . . . . . 3 19 2 11 1 . 17 . 6 1 13 5 14 8 16 4 3 10 . . Allies Corrupted 11 | . . . . . . . . . . . . . . 1 1 . 2 . . . . . 7 . . Allies Melted 2 | . . . . . . . . . . . . . . . . . . . 2 . . . . . . Intel | -11 -10 -10 -10 -9 -8 -8 -8 -8 -7 -7 -7 -7 -6 -6 -5 -5 -4 -4 -4 -4 -4 -4 -4 -3 -2 ------- Run | Yrd Mat Min Exi Min Mat Gar Mat Gar Fac Gar Fac Gar Fac Gar Fac Gar Fac Gar Fac Ext Cet Arc Hub Res Res Active Infowar (turns) 4410 | 186 3269 398 526 28 . . . . . . . . . . . . . . 1 . . . . 2 . Terrain 2 | . . . . . . . . . . . . . . . . . . . . . . . . 2 . Seismic 4407 | 186 3269 398 526 28 . . . . . . . . . . . . . . . . . . . . . Jamming 1 | . . . . . . . . . . . . . . . . . . . 1 . . . . . . Robot Analysis Total . | . . . . . . . . . . . . . . . . . . . . . . . . . . Derelict Logs Recovered 2 | . . 1 . 1 . . . . . . . . . . . . . . . . . . . . . Drone Launches . | . . . . . . . . . . . . . . . . . . . . . . . . . . Drone Recoveries . | . . . . . . . . . . . . . . . . . . . . . . . . . . Exploration | -11 -10 -10 -10 -9 -8 -8 -8 -8 -7 -7 -7 -7 -6 -6 -5 -5 -4 -4 -4 -4 -4 -4 -4 -3 -2 ------------- Run | Yrd Mat Min Exi Min Mat Gar Mat Gar Fac Gar Fac Gar Fac Gar Fac Gar Fac Gar Fac Ext Cet Arc Hub Res Res Turns Passed 37469 | 265 3455 398 526 1037 3632 1927 2654 1720 2127 881 47 2581 90 907 816 1730 2794 2055 725 3542 558 313 678 1696 315 Spaces Moved 14674 | 45 1251 198 269 507 1152 585 1034 762 920 350 18 1024 38 367 353 641 978 659 269 1101 166 47 299 1058 583 Core 886 | . . . . . . . . . . . . . . . . . . . . . . . 99 576 211 Treads 11976 | 45 787 . . . 1152 585 1034 762 920 350 18 1024 38 367 353 641 978 659 269 1101 166 47 200 480 . Legs . | . . . . . . . . . . . . . . . . . . . . . . . . . . Wheels 1438 | . 464 198 269 507 . . . . . . . . . . . . . . . . . . . . . Hover . | . . . . . . . . . . . . . . . . . . . . . . . . . . Flight 374 | . . . . . . . . . . . . . . . . . . . . . . . . 2 372 Fastest Speed 39 | 160 160 195 195 195 240 240 200 200 200 210 250 210 210 210 210 210 210 210 232 240 160 240 50 50 39 Average Speed 205 | 160 189 195 195 195 240 240 207 200 207 220 250 228 210 210 210 210 243 243 234 240 239 240 177 134 44 Slowest Speed 320 | 160 320 195 195 195 240 240 240 200 210 250 250 250 210 210 210 217 250 250 240 240 240 240 240 320 150 Overloaded Moves . | . . . . . . . . . . . . . . . . . . . . . . . . . . Propulsion Burnouts . | . . . . . . . . . . . . . . . . . . . . . . . . . . Robots Hopped 14 | . . . . . . . . . . . . . . . . . . . . . . . . . 14 Potential Cave-ins . | . . . . . . . . . . . . . . . . . . . . . . . . . . Cave-ins Triggered . | . . . . . . . . . . . . . . . . . . . . . . . . . . Exploration Rate (%) 50 | 4 99 41 61 89 74 54 90 86 27 40 1 96 2 45 4 56 40 64 11 86 66 71 65 25 21 Regions Visited 25 Branch Regions 7 Pre-discovered Areas 6 | . . . 1 . 4 . 1 . . . . . . . . . . . . . . . . . . Known Exits Taken 8 | . . . . . 1 . 1 . 1 . 1 . 1 . 1 . 1 . . . . . . 1 . Unknown Exits Taken 10 | 1 1 1 1 1 . . . . . . . . . . . . . . 1 1 1 1 1 . . Scrap Searched 4 | . . . . 4 . . . . . . . . . . . . . . . . . . . . . Spaces Dug 30 | . 2 1 . . 1 . . 1 2 . . . . 1 . . 13 1 2 . . . 2 2 2 Terrain Destroyed 364 | . 2 1 . . 50 . 24 41 2 . . 18 . 1 . 20 99 2 29 9 5 2 55 2 2 Melee 13 | . 2 1 . . 1 . . 1 2 . . . . 1 . . 3 . . . . . . . 2 Projectile 80 | . . . . . 10 . 14 1 . . . . . . . . 20 2 11 9 5 2 4 2 . AOE 271 | . . . . . 39 . 10 39 . . . 18 . . . 20 76 . 18 . . . 51 . . Terrain Rammed . | . . . . . . . . . . . . . . . . . . . . . . . . . . Walls Destroyed . | . . . . . . . . . . . . . . . . . . . . . . . . . . Machines Disabled . | . . . . . . . . . . . . . . . . . . . . . . . . . . Actions | -11 -10 -10 -10 -9 -8 -8 -8 -8 -7 -7 -7 -7 -6 -6 -5 -5 -4 -4 -4 -4 -4 -4 -4 -3 -2 --------- Run | Yrd Mat Min Exi Min Mat Gar Mat Gar Fac Gar Fac Gar Fac Gar Fac Gar Fac Gar Fac Ext Cet Arc Hub Res Res Total 20547 | 206 2190 205 271 555 1877 980 1423 908 1101 436 21 1203 48 479 412 984 1254 1046 320 1802 296 229 392 1290 619 Wait 3657 | 137 798 4 . 37 570 227 253 53 79 32 . 76 4 76 40 240 114 154 10 400 79 167 14 55 38 Move 14629 | 44 1250 197 268 506 1152 584 1033 761 919 349 17 1023 38 366 353 640 977 658 268 1100 165 46 298 1057 560 Hop 9 | . . . . . . . . . . . . . . . . . . . . . . . . . 9 Pick Up 224 | 2 27 . 2 4 30 12 9 11 13 3 1 6 2 1 2 12 11 9 2 15 8 . 5 37 . Fast Attach 115 | 1 4 . . . 6 4 9 2 6 4 . 5 . 1 . 5 14 9 4 6 5 4 1 23 2 Attach 82 | . 3 . . 1 9 4 3 3 2 1 1 3 2 . 2 2 3 4 . 7 3 . 8 20 1 Detach 14 | . 2 . . . . . . . 1 1 . . . . . . . . 1 . . . . 9 . Swap 271 | 3 17 2 . 4 9 14 21 14 25 9 1 25 1 8 5 25 25 6 5 33 6 1 9 3 . Drop 275 | 3 12 . 1 3 26 18 28 12 20 7 1 7 1 1 1 11 20 11 4 28 14 3 7 35 1 Fire 783 | 16 68 1 . . 70 67 61 37 29 22 . 38 . 15 9 42 79 59 16 58 8 8 29 51 . Melee 29 | . 2 1 . . 1 5 4 2 3 . . . . 2 . . 7 . . . . . . . 2 Ram 2 | . 1 . . . . . . . . . . . . . . . . . . . . . 1 . . Kick . | . . . . . . . . . . . . . . . . . . . . . . . . . . Crush 19 | . 6 . . . 4 . . . 2 . . . . . . . 3 2 1 . . . 1 . . Escape Stasis 86 | . . . . . . 2 . 8 . 8 . 16 . 8 . 2 . 8 . 12 . . 16 . 6 Rewire 276 | . . . . . . 43 2 5 2 . . 4 . 1 . 5 1 126 . 87 . . . . . Trap . | . . . . . . . . . . . . . . . . . . . . . . . . . . Miscellaneous 76 | . . . . . . . . . . . . . . . . . . . 9 56 8 . 3 . . Route ------- -11/Scrapyard -10/Materials (discovered 5 exits: *Mat x3 / [*Min] / [*Sub]) -10/Mines (discovered 3 exits: Mat x2 / *Exi) -10/Exiles -9/Mines -8/Materials (discovered 6 exits: *Fac x3 / *Sto x2 / Gar) -8/Garrison -8/Materials (discovered 4 exits: *Fac / *Sto x2 / Gar) -8/Garrison (discovered 3 exits: *Fac x3) -7/Factory (discovered 7 exits: *Fac x4 / *Low x2 / Gar) -7/Garrison -7/Factory (discovered 2 exits: Low / Gar) -7/Garrison (discovered 3 exits: *Fac x3) -6/Factory -6/Garrison -5/Factory -5/Garrison -4/Factory (discovered 2 exits: [*Upp] / Gar) -4/Garrison (discovered 2 exits: *Fac x2) -4/Factory -4/Extension (discovered 2 exits: *Res / *Cet) -4/Cetus (discovered 2 exits: *Res / [*Arc]) -4/Archives -4/Hub_04(d) -3/Research (discovered 2 exits: *Res / *Tes) -2/Research History --------- Turn | Location | Event 16 | -11/Scrapyard | Discovered new exit (range 3) 266 | -11/Scrapyard | Entered Materials 295 | -10/Materials | Discovered new exit (range 14) 323 | -10/Materials | Build established: Mutant 587 | -10/Materials | Discovered new exit (range 7) 769 | -10/Materials | Discovered new exit (range 3) 1405 | -10/Materials | Discovered new exit (range 11) 2109 | -10/Materials | Discovered new exit (range 11) 3167 | -10/Materials | Learned Storage interactive machine intel 3296 | -10/Materials | Learned location of 2 exits from Subcaves 3343 | -10/Materials | Loaded intel: 37 machine locations 3379 | -10/Materials | Learned 2 Storage zone layouts 3403 | -10/Materials | Learned Storage stockpile data 3438 | -10/Materials | Learned 4 Subcaves zone layouts 3481 | -10/Materials | Learned 4 Recycling zone layouts 3721 | -10/Materials | Entered Mines 3722 | -10/Mines | Identified exit to Materials 3758 | -10/Mines | Met a Derelict bent on vengeance 3785 | -10/Mines | Excavation squad dispatched 3785 | -10/Mines | A large section of the Mines collapsed 4009 | -10/Mines | Deemed a non-threat by the Exiles lab entrance 4011 | -10/Mines | Discovered new exit (range 5) 4054 | -10/Mines | Learned Materials stockpile data 4119 | -10/Mines | Entered Exiles 4168 | -10/Exiles | Met 8R-AWN 4199 | -10/Exiles | Met EX-HEX 4254 | -10/Exiles | Met EX-BIN 4281 | -10/Exiles | Aligned with FarCom system 4283 | -10/Exiles | Given EX-Vault access code 4328 | -10/Exiles | Opened EX-Vault 4342 | -10/Exiles | Found Superbattery 4388 | -10/Exiles | Warned to stay clear of 0b10 Research branches 4454 | -10/Exiles | Met EX-DEC 4476 | -10/Exiles | Learned location of Zion (-6) 4540 | -10/Exiles | Discovered new exit (range 14) 4645 | -10/Exiles | Left Exiles lab with Superbattery 4645 | -10/Exiles | Entered Mines 4661 | -9/Mines | Learned Materials garrison access intel 5576 | -9/Mines | Found a damaged Exp. Sensor Array with a note attached 5580 | -9/Mines | Found Prototype Device 5672 | -9/Mines | Discovered new exit (range 6) 5682 | -9/Mines | Entered Materials 5682 | -8/Materials | Evolved 4 slots: Propulsion x1, Utility x3 5683 | -8/Materials | Identified exit to Storage 5685 | -8/Materials | Loaded intel: 1 garrison access location 6996 | -8/Materials | Discovered new exit (range 8) 7747 | -8/Materials | Discovered new exit (range 9) 7999 | -8/Materials | Central database locked down 8237 | -8/Materials | Discovered exit to Storage (range 7) 8478 | -8/Materials | Build established: Scavenger-Mutant 8556 | -8/Materials | Learned location of 1 exit from Recycling 8609 | -8/Materials | Identified exit to Factory 8714 | -8/Materials | Learned 4 Recycling zone layouts 8737 | -8/Materials | Learned location of Extension (-4) 8957 | -8/Materials | Repaired Hvy. Particle Cannon 9314 | -8/Materials | Identified exit to Garrison 9314 | -8/Materials | Entered Garrison 9392 | -8/Garrison | Triggered checkpoint 9463 | -8/Garrison | Garrison Relay disabled 10023 | -8/Garrison | Triggered checkpoint 10329 | -8/Garrison | Installed Relay Interface Framework 10441 | -8/Garrison | Triggered checkpoint 10621 | -8/Garrison | Build established: Bothacker-Mutant 10625 | -8/Garrison | Garrison Relay disabled 10789 | -8/Garrison | Rescued a captive Derelict 10790 | -8/Garrison | Rescued a captive Derelict 10830 | -8/Garrison | Lost 3 allies 10962 | -8/Garrison | Lost 3 allies 11076 | -8/Garrison | Triggered checkpoint 11080 | -8/Garrison | Discovered new exit (range 8) 11165 | -8/Garrison | Garrison Relay disabled 11241 | -8/Garrison | Entered Materials 11241 | -8/Materials | Accompanied by 6 allies 11586 | -8/Materials | Lost 3 allies 11872 | -8/Materials | Discovered exit to Storage (range 3) 12149 | -8/Materials | Central database locked down 13416 | -8/Materials | Learned location of 2 exits from Factory 13444 | -8/Materials | Learned Factory trap positions 13445 | -8/Materials | Learned location of 2 exits from Factory 13447 | -8/Materials | Learned Factory security intel 13456 | -8/Materials | Learned Factory stockpile data 13613 | -8/Materials | Found Powered Armor 13617 | -8/Materials | Found Powered Armor 13621 | -8/Materials | Found Powered Armor 13630 | -8/Materials | Discovered exit to Factory (range 5) 13891 | -8/Materials | Identified exit to Garrison 13895 | -8/Materials | Entered Garrison 13983 | -8/Garrison | Core integrity fell below 50% 14073 | -8/Garrison | Triggered checkpoint 14119 | -8/Garrison | Expanded RIF knowledge: Structural Interface 14148 | -8/Garrison | Garrison Relay disabled 14301 | -8/Garrison | Triggered checkpoint 14331 | -8/Garrison | Triggered checkpoint 14579 | -8/Garrison | Lost 4 allies 14639 | -8/Garrison | Triggered checkpoint 14927 | -8/Garrison | Garrison Relay disabled 15371 | -8/Garrison | Garrison Relay disabled 15615 | -8/Garrison | Entered Factory 15615 | -7/Factory | Accompanied by 3 allies 15615 | -7/Factory | Evolved 2 slots: Utility x2 15616 | -7/Factory | Identified exit to Factory 15617 | -7/Factory | Identified exit to Lower Caves 15618 | -7/Factory | Loaded intel: 94 trap records 17450 | -7/Factory | P-60 Hacker assimilated allied Guardian 4c 17451 | -7/Factory | P-60 Hacker assimilated allied Guardian 4a 17714 | -7/Factory | Identified exit to Garrison 17731 | -7/Factory | Garrison activated, responded to threat 17742 | -7/Factory | Entered Garrison 17742 | -7/Garrison | Accompanied by 1 ally 17815 | -7/Garrison | Expanded RIF knowledge: Coupler Efficiency 17858 | -7/Garrison | Garrison Relay disabled 18050 | -7/Garrison | Triggered checkpoint 18140 | -7/Garrison | Triggered checkpoint 18346 | -7/Garrison | Lost 3 allies 18464 | -7/Garrison | Discovered new exit (range 10) 18473 | -7/Garrison | Triggered checkpoint 18513 | -7/Garrison | Garrison Relay disabled 18623 | -7/Garrison | Entered Factory 18623 | -7/Factory | Accompanied by 2 allies 18648 | -7/Factory | Identified exit to Garrison 18670 | -7/Factory | Entered Garrison 18670 | -7/Garrison | Accompanied by 2 allies 18751 | -7/Garrison | Found embedded Infiltrators 18956 | -7/Garrison | Triggered checkpoint 19117 | -7/Garrison | Garrison Relay disabled 19143 | -7/Garrison | P-60 Hacker assimilated allied Trooper 4d 19224 | -7/Garrison | Triggered checkpoint 19524 | -7/Garrison | Lost 4 allies 19606 | -7/Garrison | Discovered exit to Factory (range 10) 19770 | -7/Garrison | Discovered exit to Factory (range 10) 19864 | -7/Garrison | Triggered checkpoint 19917 | -7/Garrison | Discovered exit to Factory (range 13) 20106 | -7/Garrison | Garrison Relay disabled 20146 | -7/Garrison | Triggered checkpoint 20490 | -7/Garrison | Triggered checkpoint 20516 | -7/Garrison | Garrison Relay disabled 20757 | -7/Garrison | Triggered checkpoint 20957 | -7/Garrison | Garrison Relay disabled 21078 | -7/Garrison | Expanded RIF knowledge: Hotswap 21104 | -7/Garrison | Triggered checkpoint 21114 | -7/Garrison | Garrison Relay disabled 21251 | -7/Garrison | Entered Factory 21251 | -6/Factory | Accompanied by 5 allies 21251 | -6/Factory | Evolved 2 slots: Propulsion x1, Weapon x1 21337 | -6/Factory | Identified exit to Garrison 21341 | -6/Factory | Entered Garrison 21341 | -6/Garrison | Accompanied by 5 allies 21561 | -6/Garrison | Build established: Botlord-Skirmisher 21724 | -6/Garrison | Triggered checkpoint 21794 | -6/Garrison | Spotted B-75 Beast 21817 | -6/Garrison | Destroyed B-75 Beast 21834 | -6/Garrison | Lost 6 allies 21889 | -6/Garrison | Triggered checkpoint 22072 | -6/Garrison | Discovered new exit (range 10) 22089 | -6/Garrison | Expanded RIF knowledge: Signal Jamming 22166 | -6/Garrison | Garrison Relay disabled 22248 | -6/Garrison | Entered Factory 22248 | -5/Factory | Accompanied by 2 allies 22248 | -5/Factory | Evolved 2 slots: Power x1, Utility x1 22551 | -5/Factory | Build established: Botlord-Tank 23064 | -5/Factory | Identified exit to Garrison 23064 | -5/Factory | Entered Garrison 23064 | -5/Garrison | Accompanied by 1 ally 23133 | -5/Garrison | Expanded RIF knowledge: Zone Cloak 23235 | -5/Garrison | Triggered checkpoint 23431 | -5/Garrison | Garrison Relay disabled 23892 | -5/Garrison | Triggered checkpoint 23950 | -5/Garrison | Spotted B-75 Beast 23954 | -5/Garrison | Assimilated Beast 6a with formatsys_high 23962 | -5/Garrison | Triggered checkpoint 23996 | -5/Garrison | Lost 4 allies 24146 | -5/Garrison | Triggered checkpoint 24270 | -5/Garrison | Triggered checkpoint 24422 | -5/Garrison | Expanded RIF knowledge: Watcher Feeds 24571 | -5/Garrison | Discovered new exit (range 3) 24617 | -5/Garrison | Triggered checkpoint 24703 | -5/Garrison | Garrison Relay disabled 24794 | -5/Garrison | Entered Factory 24794 | -4/Factory | Accompanied by 5 allies 24794 | -4/Factory | Evolved 2 slots: Power x1, Utility x1 25871 | -4/Factory | Lost 3 allies 25947 | -4/Factory | P-70 Sage assimilated allied Sentinel 6a 26437 | -4/Factory | Discovered new exit (range 36) 27132 | -4/Factory | System corruption reached 10% 27565 | -4/Factory | Identified exit to Garrison 27588 | -4/Factory | Entered Garrison 27880 | -4/Garrison | Triggered checkpoint 27940 | -4/Garrison | Triggered checkpoint 27952 | -4/Garrison | Triggered checkpoint 28003 | -4/Garrison | Lost 6 allies 28088 | -4/Garrison | Expanded RIF knowledge: Autooverride 28185 | -4/Garrison | Triggered checkpoint 28643 | -4/Garrison | Garrison Relay disabled 28892 | -4/Garrison | Discovered new exit (range 6) 29255 | -4/Garrison | Spotted Striker 29255 | -4/Garrison | Spotted Striker 29305 | -4/Garrison | Allies destroyed Striker 29316 | -4/Garrison | Destroyed Striker 29338 | -4/Garrison | Lost 4 parts (1n2u1w) 29352 | -4/Garrison | Rewired Striker 29356 | -4/Garrison | Rewired Striker 29383 | -4/Garrison | Discovered new exit (range 3) 29530 | -4/Garrison | Triggered checkpoint 29566 | -4/Garrison | Garrison Relay disabled 29643 | -4/Garrison | Entered Factory 29643 | -4/Factory | Accompanied by 6 allies 29893 | -4/Factory | First assault squad dispatched 30131 | -4/Factory | Lost 6 allies 30356 | -4/Factory | Discovered new exit (range 5) 30368 | -4/Factory | Entered Extension 32068 | -4/Extension | Rescued A7 32129 | -4/Extension | Rescued a captive Derelict 32199 | -4/Extension | Rescued a captive Derelict 32201 | -4/Extension | Rescued a captive Derelict 32418 | -4/Extension | Warlord forces began an assault 32477 | -4/Extension | Spotted B-86 Titan 32498 | -4/Extension | Destroyed B-86 Titan 32516 | -4/Extension | Spotted B-86 Titan 32525 | -4/Extension | Destroyed B-86 Titan 32555 | -4/Extension | Lost 6 allies 32964 | -4/Extension | Rescued a captive Derelict 32965 | -4/Extension | Rescued a captive Derelict 33042 | -4/Extension | Rescued a captive Derelict 33142 | -4/Extension | Rescued a captive Derelict 33148 | -4/Extension | Rescued a captive Derelict 33420 | -4/Extension | Rescued a captive Derelict 33693 | -4/Extension | Discovered new exit (range 10) 33704 | -4/Extension | Discovered new exit (range 6) 33884 | -4/Extension | Disrupted transfer network 33910 | -4/Extension | Entered Cetus 33910 | -4/Cetus | Accompanied by 16 allies (A7) 33915 | -4/Cetus | Acquired a Cetus Manufacturing Module code from A7 33925 | -4/Cetus | Spotted Cetus Guard 33928 | -4/Cetus | Spotted Cetus Guard 33928 | -4/Cetus | Spotted Cetus Guard 33933 | -4/Cetus | Allies destroyed Cetus Guard 33943 | -4/Cetus | Destroyed Cetus Guard 33943 | -4/Cetus | Destroyed Cetus Guard 34108 | -4/Cetus | Escorted A7 to Cetus Mainframe 34134 | -4/Cetus | Started Cetus Manufacturing Module 34159 | -4/Cetus | Manufactured an Enhanced Grunt 34163 | -4/Cetus | Discovered new exit (range 15) 34184 | -4/Cetus | Manufactured an Enhanced Grunt 34195 | -4/Cetus | Discovered new exit (range 27) 34208 | -4/Cetus | Spotted Cetus Guard 34209 | -4/Cetus | Manufactured an Enhanced Grunt 34211 | -4/Cetus | Spotted Cetus Guard 34216 | -4/Cetus | Spotted Cetus Guard 34217 | -4/Cetus | Destroyed Cetus Guard 34225 | -4/Cetus | Allies destroyed Cetus Guard 34228 | -4/Cetus | Allies destroyed Cetus Guard 34230 | -4/Cetus | Destroyed Cetus Guard 34234 | -4/Cetus | Manufactured an Enhanced Grunt 34250 | -4/Cetus | Lost 3 allies 34252 | -4/Cetus | Met Revision 17 34259 | -4/Cetus | Manufactured an Enhanced Grunt 34468 | -4/Cetus | Entered Archives 34468 | -4/Archives | Accompanied by 18 allies (A7) 34473 | -4/Archives | Received a hacking code to weaken MAIN.C 34724 | -4/Archives | Discovered new exit (range 15) 34781 | -4/Archives | Entered Hub_04(d) 34781 | -4/Hub_04(d) | Accompanied by 15 allies 35233 | -4/Hub_04(d) | Network Hub disabled 35255 | -4/Hub_04(d) | Network Hub disabled 35269 | -4/Hub_04(d) | Garrison activated, responded to threat 35289 | -4/Hub_04(d) | Spotted Lightning 35296 | -4/Hub_04(d) | Spotted Lightning 35298 | -4/Hub_04(d) | Spotted Lightning 35303 | -4/Hub_04(d) | Spotted Lightning 35307 | -4/Hub_04(d) | Spotted Lightning 35311 | -4/Hub_04(d) | Spotted Lightning 35312 | -4/Hub_04(d) | Lost 14 allies 35333 | -4/Hub_04(d) | Destroyed Lightning 35347 | -4/Hub_04(d) | Spotted Lightning 35348 | -4/Hub_04(d) | Destroyed Lightning 35368 | -4/Hub_04(d) | Destroyed Lightning 35381 | -4/Hub_04(d) | Spotted Lightning 35382 | -4/Hub_04(d) | Spotted Lightning 35383 | -4/Hub_04(d) | Destroyed Lightning 35384 | -4/Hub_04(d) | Spotted Lightning 35390 | -4/Hub_04(d) | Spotted Lightning 35392 | -4/Hub_04(d) | Core integrity fell below 50% 35395 | -4/Hub_04(d) | System corruption reached 30% 35430 | -4/Hub_04(d) | Lost 16 parts (3p4n5u4w) 35441 | -4/Hub_04(d) | Discovered new exit (range 11) 35458 | -4/Hub_04(d) | Core integrity fell below 20% 35459 | -4/Hub_04(d) | Entered Research 35459 | -3/Research | Evolved 2 slots: Propulsion x2 35537 | -3/Research | Found Adv. Powered Armor 35630 | -3/Research | Discovered new exit (range 25) 35659 | -3/Research | Revision forces began assault on 0b10 35676 | -3/Research | Build established: Mutant 35787 | -3/Research | Met up with Revision 17++ 36021 | -3/Research | Build established: Scavenger-Mutant 36159 | -3/Research | Research terminal network offline 36415 | -3/Research | Discovered new exit (range 16) 36524 | -3/Research | Identified exit to Research 36688 | -3/Research | Spotted Executioner 36689 | -3/Research | Spotted Striker 36693 | -3/Research | Destroyed Executioner 36705 | -3/Research | Destroyed Striker 36813 | -3/Research | Build established: Scavenger-Tank 36859 | -3/Research | Spotted Striker 36862 | -3/Research | Spotted Striker 36870 | -3/Research | Destroyed Striker 36886 | -3/Research | Destroyed Striker 37037 | -3/Research | Spotted Striker 37039 | -3/Research | Spotted Executioner 37048 | -3/Research | Destroyed Striker 37058 | -3/Research | Spotted Striker 37062 | -3/Research | Lost 5 allies 37063 | -3/Research | Destroyed Executioner 37064 | -3/Research | Identified exit to Testing 37085 | -3/Research | System corruption reached 10% 37119 | -3/Research | Lost 8 parts (2n5u1w) 37155 | -3/Research | Entered another Research area 37155 | -2/Research | Evolved 2 slots: Utility x2 37195 | -2/Research | Spotted B-90 Cyclops 37432 | -2/Research | Core integrity fell below 50% 37460 | -2/Research | Core integrity fell below 20% 37470 | -2/Research | Destroyed by P-80 Master with Gamma Rifle Last Messages --------------- 37435_ Slug penetrates Wall. 37436_ Penetrated by Slug. 37441_ Slug penetrates Wall. 37443_ Penetrated by Slug. 37453_ ALERT: Potential suspicious activity detected, Programmers report to Research Zone 7Q. 37453_ Particle Synthesizer disabled. 37457_ K-01 Serf collects debris. 37457_ Triggered Stasis Trap. 37457_ A bubble of rippling energy engulfs the area. 37457_ Field strength at 94. 37458_ Field strength at 76. 37459_ Field strength at 57. 37460_ Field strength at 39. 37461_ Field strength at 33. 37461_ K-01 Serf collects debris. 37462_ Field strength at 15. 37463_ Field strength at 2. 37463_ Stasis field depleted. 37464_ Adv. Signal Interpreter destroyed. Map ----- +----------------------------------------------------+ | ?????????# #??????????????????????????????????? | | ?????????# #??????????????????????????????????? | | ?????????# #??????????????????????????????????? | | ?????????# #??????????????????????????????????? | | ?????????# #??????????????????????????????????? | | ?????????# ###########????????????????????????? | | ?????????# # #????????????????????????? | | ########## # #????????????????????????? | | # # = #????????????????????????? | | # # """ #????????????????????????? | | !!! # # """ #????????????????????????? | | !! + # """ #????????????????????????? | | !! # # #????????????????????????? | | # + #??????????????####+###??? | | # ###########??????????????# ? #? | | ########## #??##########????????????# #? | | ########## #? """T""" #????????????# " #? | | #? #????????????# """ #? | | ^ # #????????????# G #? | | # #????????????# = """ #? | | + #????????????+ " #? | | # #????????????# =#? | | # * #????????????# * #? | | ####################+######+######## | | ^ # | | "F "" @ # | | """"" A p pp # | | """"" g sp k """ # | | ###########################R########## """ # | | ???????????????????????#! #????# """ # | | ???????????????????????# #????# """ # | | ???????????????????????# """ ###### "" | | ???????????????????????# "T" / | | ???????????????????????# " " ###### | | ???????????????????????# #????# ] | | ???????????????????????# #########+### # | | ???????????????????????# # ] !# # | | ???????????????????????# = # # # | | ???????????????????????######+### + # | | ????????????????????????# // # [ # # | | ????????????????????????# ] // # # # | | ????????????????????????# / +! # # | | ????????????????????????# ] ! # # # | | ????????????????????????# #/########### # | | ????????????????????????####+#### ########### # | | ???????????????????????????# # | | ???????????????????????????# ^ # | | ???????????????????????????# | | ???????????????????????????# # | | ???????????????????????????# ##########+########## | +----------------------------------------------------+ Best States ------------- Heat Dissipation 105 Energy Generation 59 Energy Capacity 965 Matter Stores 300 Matter Capacity 300 Sight Range 16 Terrain Scan Density 110 Armor Coverage 1200 Resistance: TH 25 Utility Shielding 33 Weapon Cycling 15 Evasion (%) 62 Targeting Accuracy 8 Recoil Reduction 4 Defensive Hacking 10 Relay Coupler Types 5 Relay Coupler Value 146 Item Schematics ----------------- None Robot Schematics ------------------ M-13 Machinist | -8/Materials | Hacked Fabricated ------------ Nothing Repaired ---------- Hvy. Particle Cannon | 6% | -8/Materials Studied --------- Arm. Treads | -8/Materials | Hacked Rocket Launcher | -8/Materials | Hacked Lgt. Treads | -8/Materials | Hacked Alien Tech Used ----------------- None Achievements -------------- Physics Hates This One Trick Challenges ------------ None Game ------ Seed TacticalBombGravjet Manual? 0 Play Time 07:44:21 Cumulative 328.2 hours Start 2025.12.30 @ 14:05:11 End 2025.12.31 @ 23:54:55 Sessions 7 Manual Loads 0 Difficulty Rogue Special Mode None Game No. 110 Rogue 110 Adventurer 0 Explorer 0 Win Type - Total 15 Types 11/0/1/0/1/0/0/0/0/2 Lore% 58 Gallery% 53 Achievement% 45 Wizard Run 0 Options --------- Layout 0 ASCII 0 Keyboard 0 Movement Numpad Keybinds 0 Fullscreen 1 Font 18/SmallcapsGlow Map View 76x50 Zoom Use 0% Tactical HUD 1 Map Filters NONE Filters NONE Steam 1 RUN: 0634b178-7f7f-4d04-a6c5-1dd1f9dcc6d2